Workbook

Sheet 請求書(出来高用）
S2: 請 求 書（出来高用）
AP4: 請求年月日 | AV4: 年 | AX4: 月 | AZ4: 日
AD7: 出来高査定期間 | AJ7: 自 | AM7: 年 | AO7: 月 | AQ7: 日 | AR7: ～ | AS7: 至 | AV7: 年 | AX7: 月 | AZ7: 日
X10: 工種名
N13: 工事所 御中
X14: 項目 | AF14: 累計 | AM14: 前回請求まで | AT14: 今回請求
X17: ① | Y17: 契 約 金 額(税込) | AF17: =IF(AND(AM17="",AT17=""),"",SUM(AM17:AZ20)) -> 
C20: 下記の通り請求いたします。
X21: ② | Y21: 出来高金額(税抜) | AF21: =IF(AND(AM21="",AT21=""),"",SUM(AM21:AZ24)) -> 
D25: 月分 | F25: 出来高内訳書 計 | Q25: 枚 | X25: ③ | Y25: 消 費 税 額 等 | AF25: =IF(AND(AM25="",AT25=""),"",SUM(AM25:AZ28)) ->  | AM25: =IF(AM21="","",IF(H43="","消費税率を選択してください",IF(OR(H43="8%",H43="免税8％"),ROUNDDOWN(AM21*8%,0),IF(OR(H43="10%",H43="免税10％"),ROUNDDOWN(AM21*10%,0))))) ->  | AT25: =IF(AT21="","",IF(H43="","消費税率を選択してください",IF(OR(H43="8%",H43="免税8％"),ROUNDDOWN(AT21*8%,0),IF(OR(H43="10%",H43="免税10％"),ROUNDDOWN(AT21*10%,0))))) -> 
X29: ④ | Y29: 保 留 金 額 ( (②＋③)×10％) | AF29: =IF(AND(AM29="",AT29=""),"",SUM(AM29:AZ32)) ->  | AM29: =IF(AM21="","",ROUNDDOWN((AM21+AM25)*10%,0)) ->  | AT29: =IF(AT21="","",IF(AND(AF21+AF25=AF17,AM29=""),0,IF((AF21+AF25=AF17),-AM29,ROUNDDOWN((AT21+AT25)*10%,0)))) -> 
B31: =IF(OR(H43="8%",H43="免税8％"),"経過措置（改正消費税法附則第5条第3項）に基づき",IF(H43="5%","経過措置（改正消費税法附則第5条第3項）に基づき","")) -> 
B33: =IF(H43="5%","消費税率5%として算出しています。",IF(OR(H43="8%",H43="免税8％"),"消費税率8%として算出しています。","")) -> 
B36: 請求金額(税込) | H36: =IF(AF44="契約金額を超過しています","契約金額を超過しています",AT41) -> 
X41: ⑤ | Y41: 請 求 金 額(税込) ( ② ＋ ③ － ④ ) | AF41: =IF(AND(AF21="",AF25="",AF29=""),"",AF21+AF25-AF29) ->  | AM41: =IF(AND(AM21="",AM25="",AM29=""),"",AM21+AM25-AM29) ->  | AT41: =IF(AND(AT21="",AT25="",AT29=""),"",AT21+AT25-AT29) -> 
B43: 消費税率 | H43: 10%
X44: ⑥ | Y44: 残 高 ( ① － ⑤ ) | AF44: =IF(AND(AF17="",AF41=""),"",IF((AF21+AF25>AF17),"契約金額を超過しています",AF17-AF41)) -> 
B49: 注文番号 | H49: - | O49: 第 | S49: 回請求
X50: ※工事科目 | AE50: ※工事原価科目 | AL50: ※税込金額 | AQ50: ※税抜金額 | AV50: ※消費税額
B56: 請求者住所･氏名･印･電話 | K56: 取引先コード
K59: 登録番号 | O59: Ｔ
X62: ※工事所
X68: ※支社店
AM74: （様式：全7300-05-01/23.08）

Sheet 出来高内訳書
A1: 出 来 高 内 訳 書
A3: 工 事 種 別 | B3: 契 約 金 額 | F3: 累計出来高 ① | H3: 前回までの出来高 ② | J3: 今回出来高 (①－②) | L3: 備 考
B4: 単位 | C4: 数量 | D4: 単価 | E4: 金額 | F4: 数量 | G4: 金額 | H4: 数量 | I4: 金額 | J4: 数量 | K4: 金額
E5: =IF(AND(C5="",D5=""),"",ROUNDDOWN(C5*D5,0)) ->  | G5: =IF(AND(D5="",F5=""),"",IF(C5<F5,"契約超過",ROUNDDOWN(D5*F5,0))) ->  | I5: =IF(AND(D5="",H5=""),"",ROUNDDOWN(D5*H5,0)) ->  | J5: =IF(AND(F5="",H5=""),"",F5-H5) ->  | K5: =IF(AND(G5="",I5=""),"",SUM(G5)-SUM(I5)) -> 
E6: =IF(AND(C6="",D6=""),"",ROUNDDOWN(C6*D6,0)) ->  | G6: =IF(AND(D6="",F6=""),"",IF(C6<F6,"契約超過",ROUNDDOWN(D6*F6,0))) ->  | I6: =IF(AND(D6="",H6=""),"",ROUNDDOWN(D6*H6,0)) ->  | K6: =IF(AND(G6="",I6=""),"",SUM(G6)-SUM(I6)) -> 
E7: =IF(AND(C7="",D7=""),"",ROUNDDOWN(C7*D7,0)) ->  | I7: =IF(AND(D7="",H7=""),"",ROUNDDOWN(D7*H7,0)) ->  | K7: =IF(AND(G7="",I7=""),"",SUM(G7)-SUM(I7)) -> 
E8: =IF(AND(C8="",D8=""),"",ROUNDDOWN(C8*D8,0)) ->  | I8: =IF(AND(D8="",H8=""),"",ROUNDDOWN(D8*H8,0)) ->  | K8: =IF(AND(G8="",I8=""),"",SUM(G8)-SUM(I8)) -> 
E9: =IF(AND(C9="",D9=""),"",ROUNDDOWN(C9*D9,0)) ->  | I9: =IF(AND(D9="",H9=""),"",ROUNDDOWN(D9*H9,0)) ->  | J9: =IF(AND(F9="",H9=""),"",F9-H9) ->  | K9: =IF(AND(G9="",I9=""),"",SUM(G9)-SUM(I9)) -> 
K10: =IF(AND(G10="",I10=""),"",SUM(G10)-SUM(I10)) -> 

Sheet 記入注意事項
A1: 記入注意事項
A3: １．黄色のセルに入力して下さい。
A5: ２．水色のセルは自動計算されますが、必要に応じて上書き修正できます。
A7: ３．※欄は当社使用欄ですので、記入しないで下さい。
A9: ４．請求書の提出期限は当社指定締切日後３日以内です。
A11: ５．注文書･注文請書を取り交している場合は、当該注文番号を記入して下さい。
A13: ６．取引先コードは必ず記入して下さい。
A15: ７．取引先コードのない業者は、弊社職員の指示に従って下さい。
A17: ８．白黒印刷設定をしていますので、そのまま印刷して提出して下さい。
A19: ９．弊社には請求書・請求内訳書とも２部ずつ提出して下さい。
A21: １０．インボイス登録事業者は必ず登録番号を記載して下さい。

Sheet 請求書(出来高用）記入例
S2: 請 求 書（出来高用）
AP4: 請求年月日 | AT4: 2023 | AV4: 年 | AW4: 8 | AX4: 月 | AY4: 20 | AZ4: 日
AD7: 出来高査定期間 | AJ7: 自 | AK7: 2023 | AM7: 年 | AN7: 7 | AO7: 月 | AP7: 21 | AQ7: 日 | AR7: ～ | AS7: 至 | AT7: 2023 | AV7: 年 | AW7: 8 | AX7: 月 | AY7: 20 | AZ7: 日
X10: 工種名 | AA10: 鳶・土工事
B13: S．Kマンション | N13: 工事所 御中
X14: 項目 | AF14: 累計 | AM14: 前回請求まで | AT14: 今回請求
X17: ① | Y17: 契 約 金 額(税込) | AF17: =IF(AND(AM17="",AT17=""),"",SUM(AM17:AZ20)) -> 8800000 | AM17: 8800000 | AT17: 0
C20: 下記の通り請求いたします。
X21: ② | Y21: 出来高金額(税抜) | AF21: =IF(AND(AM21="",AT21=""),"",SUM(AM21:AZ24)) -> 4300000 | AM21: 1800000 | AT21: 2500000
B25: 8 | D25: 月分 | F25: 出来高内訳書 計 | M25: 1 | Q25: 枚 | X25: ③ | Y25: 消 費 税 額 等 | AF25: =IF(AND(AM25="",AT25=""),"",SUM(AM25:AZ28)) -> 430000 | AM25: =IF(AM21="","",IF(H43="","消費税率を選択してください",IF(H43="10%",ROUNDDOWN(AM21*10%,0),IF(H43="5％",ROUNDDOWN(AM21*5%,0))))) -> 180000 | AT25: =IF(AT21="","",IF(H43="","消費税率を選択してください",IF(H43="10%",ROUNDDOWN(AT21*10%,0),IF(H43="5％",ROUNDDOWN(AT21*5%,0))))) -> 250000
X29: ④ | Y29: 保 留 金 額 ( (②＋③)×10％) | AF29: =IF(AND(AM29="",AT29=""),"",SUM(AM29:AZ32)) -> 473000 | AM29: =IF(AM21="","",ROUNDDOWN((AM21+AM25)*10%,0)) -> 198000 | AT29: =IF(AT21="","",IF(AND(AF21+AF25=AF17,AM29=""),0,IF((AF21+AF25=AF17),-AM29,ROUNDDOWN((AT21+AT25)*10%,0)))) -> 275000
B36: 請求金額(税込) | H36: =IF(AF44="契約金額を超過しています","契約金額を超過しています",AT41) -> 2475000
X41: ⑤ | Y41: 請 求 金 額(税込) ( ② ＋ ③ － ④ ) | AF41: =IF(AND(AF21="",AF25="",AF29=""),"",AF21+AF25-AF29) -> 4257000 | AM41: =IF(AND(AM21="",AM25="",AM29=""),"",AM21+AM25-AM29) -> 1782000 | AT41: =IF(AND(AT21="",AT25="",AT29=""),"",AT21+AT25-AT29) -> 2475000
B43: 消費税率 | H43: 10%
X44: ⑥ | Y44: 残 高 ( ① － ⑤ ) | AF44: =IF(AND(AF17="",AF41=""),"",IF((AF21+AF25>AF17),"契約金額を超過しています",AF17-AF41)) -> 4543000
B49: 注文番号 | F49: 30 | H49: - | J49: 0012345 | O49: 第 | Q49: 2 | S49: 回請求
X50: ※工事科目 | AE50: ※工事原価科目 | AL50: ※税込金額 | AQ50: ※税抜金額 | AV50: ※消費税額
B56: 請求者住所･氏名･印･電話 | K56: 取引先コード
K59: 登録番号 | O59: Ｔ
X62: ※工事所
X68: ※支社店
AM74: （様式：全7300-05-01/23.08）

Sheet 出来高内訳書(記入例)
A1: 出 来 高 内 訳 書
A3: 工 事 種 別 | B3: 契 約 金 額 | F3: 累計出来高 ① | H3: 前回までの出来高 ② | J3: 今回出来高 (①－②) | L3: 備 考
B4: 単位 | C4: 数量 | D4: 単価 | E4: 金額 | F4: 数量 | G4: 金額 | H4: 数量 | I4: 金額 | J4: 数量 | K4: 金額
A5: 仮設工事 | E5: =IF(AND(C5="",D5=""),"",ROUNDDOWN(C5*D5,0)) ->  | G5: =IF(AND(D5="",F5=""),"",ROUNDDOWN(D5*F5,0)) ->  | I5: =IF(AND(D5="",H5=""),"",ROUNDDOWN(D5*H5,0)) ->  | J5: =IF(AND(F5="",H5=""),"",F5-H5) ->  | K5: =IF(AND(G5="",I5=""),"",SUM(G5)-SUM(I5)) -> 
A6: トップスラブ手摺 | B6: ｍ | C6: 123 | D6: 987 | E6: 121401 | F6: 100 | G6: 98700 | H6: 50 | I6: 49350 | J6: 50 | K6: 49350
A7: トップスラブ手摺 | B7: ｍ | C7: 123 | D7: 9876 | E7: 1214748 | F7: 100 | G7: 987600 | H7: 50 | I7: 493800 | J7: 50 | K7: 493800
A8: 立駐基礎周り足場組払い | B8: 式 | C8: 1 | D8: 5000000 | E8: 5000000 | F8: 0.5 | G8: 2500000 | H8: 0.2 | I8: 1000000 | J8: 0.3 | K8: 1500000
A9: 小計 | E9: =SUM(E6:E8) -> 6336149 | G9: =SUM(G6:G8) -> 3586300 | I9: =SUM(I6:I8) -> 1543150 | K9: 2043150
A10: コンクリート工事
A11: トップスラブコンクリート打設 | B11: ㎥ | C11: 555.5 | D11: 1234 | E11: 685487 | F11: 200 | G11: 246800 | H11: 100 | I11: 123400 | J11: 100 | K11: 123400
A12: 立駐基礎コン打設 | B12: ㎥ | C12: 1000 | D12: 1234 | E12: 1234000 | F12: 400 | G12: 493600 | H12: 120 | I12: 148080 | J12: 280 | K12: 345520
A13: 小計 | E13: =SUM(E11:E12) -> 1919487 | G13: =SUM(G11:G12) -> 740400 | I13: =SUM(I11:I12) -> 271480 | K13: 468920
A14: 値引 | B14: 式 | C14: 1 | D14: -55636 | E14: -55636 | G14: -26700 | I14: -14630 | K14: -12070
A15: 合計 | E15: =SUM(E9,E13,E14) -> 8200000 | G15: =SUM(G9,G13,G14) -> 4300000 | I15: =SUM(I9,I13,I14) -> 1800000 | K15: 2500000
